fUST/lending_fUST_20250722
["ID","MTS","AMOUNT","RATE_DAILY","PERIOD"]
[373992600,1753173041221,-460.0,0.00017317,2]
[373992602,1753173041231,-779.54,0.00017317,2]
[373992604,1753173041241,-460.0,0.00017317,2]
[373992606,1753173041256,-460.0,0.00017317,2]
[373992608,1753173041265,-562.5,0.00017317,2]
[373992610,1753173041274,-460.0,0.00017317,2]
[373992612,1753173041283,-460.0,0.00017317,2]
[373992614,1753173041292,-1080.26,0.00017317,2]
[373992616,1753173041301,-460.0,0.00017317,2]
[373992618,1753173041313,-166.88,0.00017317,2]
[373992620,1753173041322,-460.0,0.00017317,2]
[373992622,1753173041332,-460.0,0.00017317,2]
[373992624,1753173041342,-460.0,0.00017317,2]
[373992626,1753173041352,-460.0,0.00017317,2]
[373992628,1753173041361,-460.0,0.00017317,2]
[373992630,1753173041371,-808.37,0.00017317,2]
[373992632,1753173041380,-310.2,0.00017317,2]
[373992634,1753173041390,-460.0,0.00017318,2]
[373992636,1753173041398,-343.50621008,0.00017318,2]
[373992638,1753173041408,-460.0,0.00017318,2]
[373992640,1753173041417,-460.0,0.00017318,2]
[373992642,1753173041426,-460.0,0.00017318,2]
[373992644,1753173041436,-460.0,0.00017318,2]
[373992646,1753173041446,-617.24,0.00017318,2]
[373992648,1753173041455,-821.44,0.00017318,2]
[373992650,1753173041465,-460.0,0.00017415,2]
[373992652,1753173041474,-460.0,0.00017415,2]
[373992654,1753173041483,-460.0,0.00017415,2]
[373992656,1753173041496,-460.0,0.00017417,2]
[373992658,1753173041506,-710.89,0.00017417,2]
[373992660,1753173041515,-460.0,0.00017418,2]
[373992662,1753173041524,-460.0,0.0001742,2]
[373992664,1753173041533,-609.38,0.0001742,2]
[373992666,1753173041543,-2061.22012368,0.00017521,2]
[373992668,1753173041554,-460.0,0.00017523,2]
[373992670,1753173041563,-2622.44,0.00017523,2]
[373992672,1753173041573,-460.0,0.00017523,2]
[373992674,1753173041582,-460.0,0.0001759,2]
[373992676,1753173041592,-460.0,0.00017591,2]
[373992678,1753173041602,-452.13661612,0.00017591,2]
[373992680,1753173041611,-779.54,0.00017591,2]
[373992682,1753173041621,-460.0,0.00017591,2]
[373992684,1753173041630,-562.5,0.00017591,2]
[373992686,1753173041640,-460.0,0.00017591,2]
[373992688,1753173041649,-460.0,0.00017591,2]
[373992690,1753173041658,-1080.26,0.00017591,2]
[373992692,1753173041667,-460.0,0.00017591,2]
[373992694,1753173041677,-460.0,0.00017591,2]
[373992696,1753173041686,-497.75984342,0.00017591,2]
[373992698,1753173041696,-460.0,0.00017591,2]
[373992700,1753173041705,-460.0,0.00017591,2]
[373992702,1753173041714,-808.37,0.00017591,2]
[373992704,1753173041723,-460.0,0.00017592,2]
[373992706,1753173041732,-460.0,0.00017592,2]
[373992708,1753173041742,-460.0,0.00017592,2]
[373992710,1753173041755,-460.0,0.00017592,2]
[373992712,1753173041764,-617.24,0.00017592,2]
[373992714,1753173041774,-821.44,0.00017592,2]
[373992716,1753173041782,-460.0,0.00017689,2]
[373992718,1753173041791,-460.0,0.00017689,2]
[373992720,1753173041800,-460.0,0.00017689,2]
[373992722,1753173041810,-460.0,0.00017691,2]
[373992724,1753173041820,-710.89,0.00017691,2]
[373992726,1753173041833,-460.0,0.00017692,2]
[373992729,1753173041847,-460.0,0.00017694,2]
[373992730,1753173041857,-609.38,0.00017694,2]
[373992733,1753173041868,-460.0,0.00017797,2]
[373992735,1753173041877,-2622.44,0.00017797,2]
[373992736,1753173041887,-460.0,0.00017797,2]
[373992738,1753173041896,-286.34611716,0.00017801,2]
[373992741,1753173041906,-2061.22012368,0.00017831,2]
[373992742,1753173041915,-460.0,0.00017864,2]
[373992744,1753173041925,-460.0,0.00017865,2]
[373992746,1753173041934,-779.54,0.00017865,2]
[373992748,1753173041944,-460.0,0.00017865,2]
[373992750,1753173041954,-562.5,0.00017865,2]
[373992752,1753173041963,-460.0,0.00017865,2]
[373992754,1753173041972,-460.0,0.00017865,2]
[373992757,1753173041984,-460.0,0.00017865,2]
[373992759,1753173041998,-1080.26,0.00017865,2]
[373992760,1753173042008,-460.0,0.00017865,2]
[373992762,1753173042017,-460.0,0.00017865,2]
[373992765,1753173042030,-460.0,0.00017865,2]
[373992767,1753173042043,-808.37,0.00017865,2]
[373992770,1753173042056,-460.0,0.00017866,2]
[373992772,1753173042069,-460.0,0.00017866,2]
[373992775,1753173042082,-460.0,0.00017866,2]
[373992777,1753173042093,-460.0,0.00017866,2]
[373992779,1753173042104,-617.24,0.00017866,2]
[373992781,1753173042117,-821.44,0.00017866,2]
[373992783,1753173042129,-460.0,0.00017963,2]
[373992786,1753173042140,-460.0,0.00017963,2]
[373992788,1753173042151,-460.0,0.00017963,2]
[373992790,1753173042163,-460.0,0.00017965,2]
[373992792,1753173042174,-710.89,0.00017965,2]
[373992795,1753173042189,-460.0,0.00017966,2]
[373992797,1753173042200,-460.0,0.00017968,2]
[373992799,1753173042212,-500.0,0.0001807,2]
[373992801,1753173042224,-500.0,0.0001807,2]
[373992803,1753173042236,-341.10576089,0.0001807,2]
[373992805,1753173042254,-500.0,0.0001807,2]
[373992807,1753173042266,-500.0,0.0001807,2]
[373992809,1753173042277,-384.97710483,0.0001807,2]
[373992811,1753173042289,-424.54553069,0.0001807,2]
[373992813,1753173042303,-460.0,0.00018071,2]
[373992815,1753173042314,-2622.44,0.00018071,2]
[373992816,1753173042324,-460.0,0.00018071,2]
[373992818,1753173042336,-460.0,0.00018138,2]
[373992820,1753173042349,-460.0,0.00018139,2]
[373992822,1753173042361,-779.54,0.00018139,2]
[373992824,1753173042372,-460.0,0.00018139,2]
[373992826,1753173042382,-562.5,0.00018139,2]
[373992828,1753173042393,-460.0,0.00018139,2]
[373992830,1753173042403,-460.0,0.00018139,2]
[373992832,1753173042413,-460.0,0.00018139,2]
[373992834,1753173042425,-1080.26,0.00018139,2]
[373992836,1753173042436,-460.0,0.00018139,2]
[373992838,1753173042447,-460.0,0.00018139,2]
[373992840,1753173042459,-460.0,0.00018139,2]
[373992842,1753173042471,-808.37,0.00018139,2]
[373992844,1753173042483,-460.0,0.0001814,2]
[373992845,1753173042496,-460.0,0.0001814,2]
[373992847,1753173042507,-460.0,0.0001814,2]
[373992849,1753173042520,-617.24,0.0001814,2]
[373992851,1753173042532,-821.44,0.0001814,2]
[373992853,1753173042544,-2061.22012368,0.00018141,2]
[373992855,1753173042555,-526.78,0.00018227,3]
[373992857,1753173042568,-460.0,0.00018237,2]
[373992859,1753173042579,-460.0,0.00018237,2]
[373992861,1753173042589,-460.0,0.00018237,2]
[373992863,1753173042598,-460.0,0.00018239,2]
[373992864,1753173042608,-710.89,0.00018239,2]
[373992866,1753173042618,-460.0,0.0001824,2]
[373992869,1753173042629,-460.0,0.00018242,2]
[373992872,1753173042640,-635.88,0.00018242,2]
[373992876,1753173042653,-420.0,0.00018318,2]
[373992878,1753173042663,-420.0,0.00018318,2]
[373992880,1753173042675,-460.0,0.00018345,2]
[373992882,1753173042686,-2622.44,0.00018345,2]
[373992883,1753173042695,-460.0,0.00018345,2]
[373992885,1753173042706,-460.0,0.00018412,2]
[373992887,1753173042717,-779.54,0.00018413,2]
[373992889,1753173042728,-460.0,0.00018413,2]
[373992892,1753173042739,-562.5,0.00018413,2]
[373992893,1753173042753,-460.0,0.00018413,2]
[373992895,1753173042763,-460.0,0.00018413,2]
[373992897,1753173042774,-460.0,0.00018413,2]
[373992900,1753173042784,-1080.26,0.00018413,2]
[373992903,1753173042795,-460.0,0.00018413,2]
[373992905,1753173042805,-460.0,0.00018413,2]
[373992907,1753173042816,-808.37,0.00018413,2]
[373992910,1753173042831,-460.0,0.00018413,2]
[373992912,1753173042842,-599.00652439,0.00018414,2]
[373992915,1753173042852,-460.0,0.00018414,2]
[373992917,1753173042864,-460.0,0.00018414,2]
[373992919,1753173042874,-617.24,0.00018414,2]
[373992922,1753173042885,-821.44,0.00018414,2]
[373992924,1753173042897,-2061.22012368,0.00018452,2]
[373992926,1753173042908,-550.77003226,0.00018484,2]
[373992928,1753173042918,-26525.99635293,0.000185,2]
[373992930,1753173042929,-266.16,0.00018511,2]
[373992932,1753173042939,-460.0,0.00018511,2]
[373992934,1753173042950,-460.0,0.00018511,2]
[373992936,1753173042960,-460.0,0.00018513,2]
[373992938,1753173042970,-710.89,0.00018513,2]
[373992940,1753173042980,-460.0,0.00018514,2]
[373992942,1753173042991,-460.0,0.00018516,2]
[373992944,1753173043005,-635.88,0.00018516,2]
[373992945,1753173043016,-512.46627473,0.00018529,2]
[373992947,1753173043026,-160.0,0.00018544,2]
[373992949,1753173043038,-460.0,0.00018619,2]
[373992951,1753173043048,-2622.44,0.00018619,2]
[373992953,1753173043059,-460.0,0.00018619,2]
[373992955,1753173043069,-500.0,0.00018633,2]
[373992956,1753173043080,-460.0,0.00018686,2]
[373992958,1753173043090,-779.54,0.00018687,2]
[373992960,1753173043101,-460.0,0.00018687,2]
[373992962,1753173043111,-562.5,0.00018687,2]
[373992964,1753173043122,-460.0,0.00018687,2]
[373992966,1753173043132,-1080.26,0.00018687,2]
[373992968,1753173043143,-460.0,0.00018687,2]
[373992970,1753173043153,-808.37,0.00018687,2]
[373992972,1753173043163,-460.0,0.00018687,2]
[373992974,1753173043175,-460.0,0.00018688,2]
[373992976,1753173043185,-460.0,0.00018688,2]
[373992977,1753173043195,-617.24,0.00018688,2]
[373992979,1753173043206,-821.44,0.00018688,2]
[373992981,1753173043216,-160.0,0.00018747,2]
[373992983,1753173043227,-160.0,0.00018747,2]
[373992985,1753173043238,-160.0,0.00018747,2]
[373992987,1753173043252,-526.07605158,0.00018747,2]
[373992989,1753173043263,-839.90542673,0.00018747,2]
[373992991,1753173043274,-160.0,0.00018747,2]
[373992993,1753173043284,-231.06963584,0.00018747,2]
[373992995,1753173043295,-12619.94447631,0.00018747,2]
[373992997,1753173043306,-160.0,0.00018747,2]
[373992999,1753173043316,-214.6393183,0.00018747,2]
[373993001,1753173043327,-160.0,0.00018747,2]
[373993003,1753173043337,-160.0,0.00018747,2]
[373993004,1753173043348,-215.80012421,0.00018747,2]
[373993006,1753173043359,-476.60259688,0.00018749,2]
[373993008,1753173043370,-160.0,0.00018749,2]
[373993010,1753173043381,-160.0,0.00018749,2]
[373993012,1753173043393,-2061.22012368,0.00018762,2]
[373993014,1753173043404,-460.0,0.00018785,2]
[373993016,1753173043414,-460.0,0.00018785,2]
[373993018,1753173043425,-460.0,0.00018787,2]
[373993020,1753173043435,-710.89,0.00018787,2]
[373993022,1753173043447,-460.0,0.00018788,2]
[373993024,1753173043458,-460.0,0.0001879,2]
[373993026,1753173043470,-635.88,0.0001879,2]
[373993028,1753173043481,-460.0,0.00018893,2]
[373993030,1753173043491,-2622.44,0.00018893,2]
[373993043,1753173043634,-460.0,0.00018893,2]
[373993046,1753173043655,-460.0,0.0001896,2]
[373993048,1753173043664,-779.54,0.00018961,2]
[373993050,1753173043674,-460.0,0.00018961,2]
[373993051,1753173043683,-562.5,0.00018961,2]
[373993053,1753173043692,-460.0,0.00018961,2]
[373993055,1753173043702,-1080.26,0.00018961,2]
[373993057,1753173043711,-460.0,0.00018961,2]
[373993059,1753173043721,-808.37,0.00018961,2]
[373993061,1753173043730,-460.0,0.00018961,2]
[373993062,1753173043740,-460.0,0.00018962,2]
[373993064,1753173043751,-460.0,0.00018962,2]
[373993066,1753173043760,-617.24,0.00018962,2]
[373993068,1753173043770,-821.44,0.00018962,2]
[373993070,1753173043779,-460.0,0.00019059,2]
[373993072,1753173043788,-460.0,0.00019061,2]
[373993073,1753173043797,-710.89,0.00019061,2]
[373993075,1753173043807,-460.0,0.00019062,2]
[373993077,1753173043817,-460.0,0.00019064,2]
[373993079,1753173043830,-635.88,0.00019064,2]
[373993081,1753173043839,-2061.22012368,0.00019072,2]
[373993083,1753173043849,-260.0,0.00019092,2]
[373993085,1753173043858,-460.0,0.00019167,2]
[373993087,1753173043869,-2622.44,0.00019167,2]
[373993088,1753173043878,-460.0,0.00019167,2]
[373993090,1753173043887,-249.385251,0.00019178,2]
[373993092,1753173043896,-500.0,0.00019181,2]
[373993094,1753173043908,-460.0,0.00019234,2]
[373993096,1753173043917,-779.54,0.00019235,2]
[373993098,1753173043927,-562.5,0.00019235,2]
[373993099,1753173043936,-460.0,0.00019235,2]
[373993101,1753173043946,-1080.26,0.00019235,2]
[373993103,1753173043955,-460.0,0.00019235,2]
[373993105,1753173043965,-808.37,0.00019235,2]
[373993107,1753173043975,-460.0,0.00019235,2]
[373993109,1753173043984,-460.0,0.00019236,2]
[373993110,1753173043995,-460.0,0.00019236,2]
[373993112,1753173044004,-617.24,0.00019236,2]
[373993114,1753173044014,-821.44,0.00019236,2]
[373993116,1753173044023,-100000.0,0.00019329,2]
[373993118,1753173044033,-308.66,0.00019333,2]
[373993120,1753173044042,-460.0,0.00019335,2]
[373993121,1753173044051,-710.89,0.00019335,2]
[373993123,1753173044060,-460.0,0.00019336,2]
[373993125,1753173044070,-460.0,0.00019338,2]
[373993127,1753173044079,-635.88,0.00019338,2]
[373993129,1753173044088,-500.0,0.00019373,2]
[373993131,1753173044097,-2061.22012368,0.00019383,2]
[373993132,1753173044107,-460.0,0.00019441,2]
[373993134,1753173044116,-2622.44,0.00019441,2]
[373993136,1753173044126,-460.0,0.00019441,2]
[373993138,1753173044135,-460.0,0.00019508,2]
[373993140,1753173044144,-779.54,0.00019509,2]
[373993142,1753173044153,-562.5,0.00019509,2]
[373993143,1753173044163,-281.18788271,0.00019509,2]
[373993145,1753173044172,-1080.26,0.00019509,2]
[373993147,1753173044181,-460.0,0.00019509,2]
[373993149,1753173044193,-808.37,0.00019509,2]
[373993151,1753173044203,-372.4,0.00019509,2]
[373993153,1753173044212,-460.0,0.0001951,2]
[373993155,1753173044221,-617.24,0.0001951,2]
[373993156,1753173044231,-821.44,0.0001951,2]
[373993158,1753173044240,-460.0,0.00019609,2]
[373993160,1753173044254,-710.89,0.00019609,2]
[373993162,1753173044263,-460.0,0.0001961,2]
[373993164,1753173044273,-421.53940525,0.00019612,2]
[373993166,1753173044283,-635.88,0.00019612,2]
[373993168,1753173044292,-360.0,0.0001964,2]
[373993169,1753173044303,-3343.58847136,0.0001969,2]
[373993171,1753173044313,-2061.22012368,0.00019693,2]
[373993173,1753173044323,-460.0,0.00019715,2]
[373993175,1753173044333,-2622.44,0.00019715,2]
[373993177,1753173044343,-460.0,0.00019715,2]
[373993179,1753173044353,-460.0,0.00019782,2]
[373993181,1753173044363,-779.54,0.00019783,2]
[373993182,1753173044373,-562.5,0.00019783,2]
[373993184,1753173044383,-1080.26,0.00019783,2]
[373993186,1753173044394,-460.0,0.00019783,2]
[373993188,1753173044406,-808.37,0.00019783,2]
[373993190,1753173044416,-460.0,0.00019784,2]
[373993192,1753173044425,-617.24,0.00019784,2]
[373993194,1753173044435,-821.44,0.00019784,2]
[373993195,1753173044444,-460.0,0.00019883,2]
[373993197,1753173044454,-710.89,0.00019883,2]
[373993199,1753173044463,-460.0,0.00019884,2]
[373993201,1753173044473,-635.88,0.00019886,2]
[373993203,1753173044482,-460.0,0.00019989,2]
[373993205,1753173044493,-2622.44,0.00019989,2]
[373993207,1753173044504,-460.0,0.00019989,2]
[373993208,1753173044514,-35850.79696441,0.0002,2]
[373993210,1753173044524,-72599.65487824,0.0002,2]
[373993212,1753173044533,-2061.22012368,0.00020003,2]
[373993214,1753173044543,-587.0,0.00020012,2]
[373993216,1753173044552,-587.0,0.00020012,2]
[373993217,1753173044561,-550.77003226,0.00020024,2]
[373993219,1753173044571,-460.0,0.00020056,2]
[373993221,1753173044580,-779.54,0.00020057,2]
[373993223,1753173044589,-562.5,0.00020057,2]
[373993225,1753173044599,-1080.26,0.00020057,2]
[373993227,1753173044610,-460.0,0.00020057,2]
[373993229,1753173044619,-808.37,0.00020057,2]
[373993230,1753173044628,-460.0,0.00020058,2]
[373993232,1753173044638,-617.24,0.00020058,2]
[373993234,1753173044647,-821.44,0.00020058,2]
[373993236,1753173044657,-460.0,0.00020157,2]
[373993238,1753173044666,-710.89,0.00020157,2]
[373993240,1753173044675,-230.28267498,0.00020158,2]
[373993241,1753173044685,-635.88,0.0002016,2]
[373993243,1753173044694,-180.0,0.00020188,2]
[373993245,1753173044703,-460.0,0.00020263,2]
[373993247,1753173044713,-2622.44,0.00020263,2]
[373993249,1753173044722,-460.0,0.00020263,2]
[373993251,1753173044731,-2061.22012368,0.00020314,3]
[373993252,1753173044741,-460.0,0.0002033,2]
[373993254,1753173044753,-779.54,0.00020331,2]
[373993256,1753173044763,-562.5,0.00020331,2]
[373993258,1753173044772,-1080.26,0.00020331,2]
[373993260,1753173044781,-255.88331493,0.00020331,2]
[373993262,1753173044791,-808.37,0.00020331,2]
[373993264,1753173044800,-460.0,0.00020332,2]
[373993266,1753173044809,-617.24,0.00020332,2]
[373993267,1753173044819,-821.44,0.00020332,2]
[373993269,1753173044830,-1832.34388065,0.00020361,2]
[373993271,1753173044840,-570.9949222,0.000204,2]
[373993273,1753173044849,-460.0,0.00020431,2]
[373993275,1753173044858,-710.89,0.00020431,2]
[373993277,1753173044867,-635.88,0.00020434,2]
[373993278,1753173044877,-460.0,0.00020536,2]
[373993280,1753173044887,-2622.44,0.00020536,2]
[373993282,1753173044896,-460.0,0.00020536,2]
[373993284,1753173044906,-460.0,0.00020604,2]
[373993286,1753173044915,-779.54,0.00020605,2]
[373993288,1753173044925,-562.5,0.00020605,2]
[373993290,1753173044934,-1080.26,0.00020605,2]
[373993291,1753173044944,-808.37,0.00020605,2]
[373993293,1753173044953,-460.0,0.00020606,2]
[373993295,1753173044962,-617.24,0.00020606,2]
[373993297,1753173044972,-821.44,0.00020606,2]
[373993299,1753173044981,-2061.22012368,0.00020624,3]
[373993301,1753173044990,-215.0738,0.00020647,2]
[373993302,1753173045003,-151.0,0.00020647,2]
[373993304,1753173045012,-160.0976356,0.00020705,2]
[373993306,1753173045022,-710.89,0.00020705,2]
[373993308,1753173045032,-635.88,0.00020708,2]
[373993310,1753173045041,-996.992,0.00020713,2]
[373993312,1753173045051,-178.80003706,0.00020713,2]
[373993314,1753173045060,-460.0,0.0002081,2]
[373993315,1753173045069,-2622.44,0.0002081,2]
[373993317,1753173045079,-460.0,0.0002081,2]
[373993319,1753173045088,-460.0,0.00020878,2]
[373993321,1753173045098,-779.54,0.00020879,2]
[373993323,1753173045107,-562.5,0.00020879,2]
[373993325,1753173045117,-1080.26,0.00020879,2]
[373993326,1753173045126,-808.37,0.00020879,2]
[373993328,1753173045136,-460.0,0.0002088,2]
[373993330,1753173045145,-821.44,0.0002088,2]
[373993332,1753173045154,-617.24,0.0002088,2]
[373993334,1753173045164,-2061.22012368,0.00020934,4]
[373993336,1753173045173,-710.89,0.00020979,2]
[373993338,1753173045182,-635.88,0.00020982,2]
[373993339,1753173045191,-460.0,0.00021084,2]
[373993341,1753173045200,-2622.44,0.00021084,2]
[373993343,1753173045209,-588.05,0.00021084,2]
[373993345,1753173045219,-460.0,0.00021152,2]
[373993347,1753173045228,-779.54,0.00021153,2]
[373993349,1753173045237,-562.5,0.00021153,2]
[373993350,1753173045249,-1080.26,0.00021153,2]
[373993352,1753173045259,-808.37,0.00021153,2]
[373993354,1753173045268,-589.47337716,0.00021154,2]
[373993356,1753173045277,-821.44,0.00021154,2]
[373993358,1753173045287,-617.24,0.00021154,2]
[373993360,1753173045297,-2061.22012368,0.00021245,4]
[373993362,1753173045306,-151.0,0.00021253,2]
[373993364,1753173045315,-151.0,0.00021253,2]
[373993366,1753173045325,-710.89,0.00021253,2]
[373993368,1753173045334,-635.88,0.00021256,2]
[373993370,1753173045344,-151.0,0.00021358,2]
[373993372,1753173045353,-151.0,0.00021358,2]
[373993374,1753173045362,-460.0,0.00021358,2]
[373993376,1753173045371,-2622.44,0.00021358,2]
[373993378,1753173045381,-151.0,0.00021358,2]
[373993380,1753173045390,-454.11957381,0.00021399,2]
[373993382,1753173045400,-161.408051,0.00021404,2]
[373993383,1753173045410,-460.0,0.00021426,2]
[373993384,1753173045420,-779.54,0.00021427,2]
[373993385,1753173045429,-562.5,0.00021427,2]
[373993386,1753173045439,-1080.26,0.00021427,2]
[373993387,1753173045449,-808.37,0.00021427,2]
[373993388,1753173045459,-821.44,0.00021428,2]
[373993389,1753173045469,-617.24,0.00021428,2]
[373993390,1753173045479,-710.89,0.00021527,2]
[373993391,1753173045489,-635.88,0.0002153,2]
[373993392,1753173045501,-2061.22012368,0.00021555,5]
[373993393,1753173045511,-550.77003226,0.00021565,2]
[373993394,1753173045521,-460.0,0.00021632,2]
[373993395,1753173045530,-2622.44,0.00021632,2]
[373993396,1753173045540,-460.0,0.000217,2]
[373993397,1753173045550,-779.54,0.00021701,2]
[373993398,1753173045559,-562.5,0.00021701,2]
[373993399,1753173045569,-1080.26,0.00021701,2]
[373993400,1753173045579,-808.37,0.00021701,2]
[373993401,1753173045588,-821.44,0.00021702,2]
[373993402,1753173045598,-617.24,0.00021702,2]
[373993403,1753173045607,-877.72466876,0.00021739,2]
[373993404,1753173045617,-151.0,0.000218,4]
[373993405,1753173045627,-710.89,0.00021801,2]
[373993406,1753173045637,-500.0,0.00021804,2]
[373993407,1753173045646,-635.88,0.00021804,2]
[373993408,1753173045656,-823.0,0.00021862,2]
[373993409,1753173045666,-630.0,0.00021862,2]
[373993410,1753173045675,-2061.22012368,0.00021866,6]
[373993411,1753173045685,-460.0,0.00021906,2]
[373993413,1753173045695,-2622.44,0.00021906,2]
[373993414,1753173045704,-179.58591415,0.00021918,2]
[373993415,1753173045714,-151.0,0.00021936,5]
[373993416,1753173045723,-460.0,0.00021974,2]
[373993417,1753173045733,-779.54,0.00021975,2]
[373993418,1753173045742,-562.5,0.00021975,2]
[373993419,1753173045756,-1080.26,0.00021975,2]
[373993420,1753173045766,-808.37,0.00021975,2]
[373993421,1753173045776,-821.44,0.00021976,2]
[373993422,1753173045785,-617.24,0.00021976,2]
[373993423,1753173045795,-9272.998692,0.00022,7]
[373993424,1753173045805,-9272.998692,0.00022,7]
[373993425,1753173045814,-3813.53,0.00022,7]
[373993427,1753173045824,-1797.88,0.00022,7]
[373993428,1753173045835,-48552.48,0.00022,2]
[373993430,1753173045845,-168.0,0.00022,2]
[373993431,1753173045854,-214.6393183,0.00022,7]
[373993433,1753173045863,-3460.39,0.00022,7]
[373993434,1753173045873,-12619.94447631,0.00022,7]
[373993435,1753173045882,-223.0315306,0.00022016,2]
[373993437,1753173045892,-710.89,0.00022075,2]
[373993440,1753173045902,-500.0,0.00022078,2]
[373993442,1753173045912,-635.88,0.00022078,2]
[373993444,1753173045922,-154.473694,0.00022154,2]
[373993446,1753173045932,-2061.22012368,0.00022176,6]
[373993448,1753173045941,-460.0,0.0002218,2]
[373993450,1753173045951,-2622.44,0.0002218,2]
[373993452,1753173045960,-151.0,0.000222,10]
[373993454,1753173045969,-460.0,0.00022248,2]
[373993455,1753173045979,-779.54,0.00022249,2]
[373993457,1753173045989,-562.5,0.00022249,2]
[373993460,1753173046001,-1080.26,0.00022249,2]
[373993462,1753173046010,-808.37,0.00022249,2]
[373993464,1753173046020,-821.44,0.0002225,2]
[373993466,1753173046029,-617.24,0.0002225,2]
[373993468,1753173046039,-710.89,0.00022349,2]
[373993470,1753173046048,-175.804974,0.00022351,7]
[373993472,1753173046057,-175.804974,0.00022351,7]
[373993474,1753173046067,-151.0,0.00022351,7]
[373993476,1753173046077,-509.0,0.00022352,2]
[373993478,1753173046086,-635.88,0.00022352,2]
[373993480,1753173046096,-151.0,0.0002243,5]
[373993482,1753173046106,-460.0,0.00022454,2]
[373993484,1753173046115,-2622.44,0.00022454,2]
[373993486,1753173046125,-2992.0,0.00022465,2]
[373993488,1753173046134,-2061.22012368,0.00022486,7]
[373993490,1753173046143,-3279.64865424,0.00022488,2]
[373993492,1753173046153,-460.0,0.00022522,2]
[373993494,1753173046162,-779.54,0.00022523,2]
[373993496,1753173046171,-562.5,0.00022523,2]
[373993498,1753173046181,-1080.26,0.00022523,2]
[373993500,1753173046190,-808.37,0.00022523,2]
[373993502,1753173046201,-821.44,0.00022524,2]
[373993504,1753173046211,-617.24,0.00022524,2]
[373993506,1753173046221,-1321.71,0.00022529,6]
[373993508,1753173046230,-1176.62211392,0.00022558,2]
[373993510,1753173046239,-249.385251,0.00022603,2]
[373993512,1753173046250,-710.89,0.00022623,2]
[373993514,1753173046259,-635.88,0.00022626,2]
[373993516,1753173046269,-1321.71,0.00022629,5]
[373993518,1753173046278,-460.0,0.00022728,2]
[373993520,1753173046287,-2622.44,0.00022728,2]
[373993522,1753173046296,-1321.71,0.00022729,3]
[373993524,1753173046306,-2200.0,0.00022775,2]
[373993526,1753173046315,-596.69240165,0.00022796,2]
[373993528,1753173046325,-2061.22012368,0.00022797,7]
[373993530,1753173046335,-779.54,0.00022797,2]
[373993532,1753173046344,-562.5,0.00022797,2]
[373993534,1753173046354,-1080.26,0.00022797,2]
[373993536,1753173046363,-808.37,0.00022797,2]
[373993538,1753173046373,-821.44,0.00022798,2]
[373993540,1753173046382,-617.24,0.00022798,2]
[373993542,1753173046392,-1321.71,0.00022829,7]
[373993544,1753173046402,-968.0,0.00022873,2]
[373993546,1753173046412,-417.608,0.00022873,2]